bitfinex-derivatives/quotes_BTCF0:USTF0_20260314
["timestamp","ask_amount","ask_price","bid_price","bid_amount"]
[1773496697141,0.042299,70913.0,70900.0,0.11578532]
[1773496697341,0.042299,70913.0,70901.0,0.01722873]
[1773496697856,0.042298,70915.0,70901.0,0.01722873]
[1773496698950,0.042298,70915.0,70902.0,0.042305]
[1773496699150,0.042298,70915.0,70902.0,0.05953373]
[1773496700245,0.0014,70923.0,70908.0,0.01722873]
[1773496700442,0.042295,70919.0,70908.0,0.01862873]
[1773496700650,0.0014,70923.0,70908.0,0.01862873]
[1773496700651,0.042294,70920.0,70908.0,0.01862873]
[1773496700963,0.042295,70919.0,70908.0,0.01862873]
[1773496701153,0.042295,70919.0,70908.0,0.0014]
[1773496704359,0.00373,70935.0,70909.0,0.0162291]
[1773496704550,0.13206162,70930.0,70909.0,0.0162291]
[1773496704748,0.0162873,70929.0,70909.0,0.0162291]
[1773496704953,0.042294,70921.0,70909.0,0.0585301]
[1773496715370,0.042294,70921.0,70909.0,0.0595301]
[1773496715671,0.042294,70921.0,70909.0,0.0605301]
[1773496716476,0.042294,70921.0,70909.0,0.044301]
[1773496716674,0.042294,70921.0,70909.0,0.0605301]
[1773496718873,0.042294,70921.0,70909.0,0.0595301]
[1773496721177,0.042295,70920.0,70910.0,0.0162291]
[1773496721579,0.042295,70928.0,70909.0,0.001]
[1773496721770,0.0162873,70926.0,70908.0,0.0014]
[1773496721969,0.042297,70916.0,70909.0,0.001]
[1773496722179,0.042295,70927.0,70902.0,0.25299166]
[1773496722180,0.07347932,70920.0,70902.0,0.25299166]
[1773496722376,0.042295,70915.0,70903.0,0.0014]
[1773496722673,0.0162873,70918.0,70903.0,0.0014]
[1773496722976,0.0162873,70918.0,70901.0,0.042306]
[1773496723176,0.0162873,70918.0,70902.0,0.0014]
[1773496723879,0.0162873,70918.0,70901.0,0.042306]
[1773496724072,0.042298,70914.0,70909.0,0.002]
[1773496724282,0.0162873,70918.0,70909.0,1.6e-07]
[1773496724671,0.0162873,70918.0,70905.0,0.0014]
[1773496725381,0.042299,70912.0,70905.0,0.0014]
[1773496725582,0.042299,70912.0,70901.0,0.25299166]
[1773496725877,0.042295,70911.0,70902.0,0.0014]
[1773496728471,0.042295,70911.0,70902.0,0.25539166]
[1773496728675,0.042295,70911.0,70902.0,0.25639166]
[1773496728876,0.042295,70911.0,70902.0,0.0034]
[1773496730387,0.084595,70911.0,70902.0,0.0034]
[1773496731086,0.042295,70911.0,70902.0,0.002]
[1773496731289,0.042295,70911.0,70903.0,0.0014]
[1773496731588,0.042295,70911.0,70902.0,0.002]
[1773496731792,0.042295,70911.0,70904.0,0.0014]
[1773496732189,0.042299,70913.0,70904.0,0.0014]
[1773496732394,0.042295,70912.0,70904.0,0.0014]
[1773496735282,0.042295,70912.0,70904.0,0.25439166]
[1773496735483,0.084594,70912.0,70904.0,0.0014]
[1773496735685,0.0423,70911.0,70904.0,0.0014]
[1773496749101,0.042299,70913.0,70904.0,0.0014]
[1773496749493,0.042299,70913.0,70906.0,0.16857762]
[1773496751297,0.042299,70913.0,70907.0,0.16857762]
[1773496752406,0.042299,70913.0,70905.0,0.16857762]
[1773496754205,0.042295,70914.0,70905.0,0.16857762]
[1773496754411,0.0423,70911.0,70905.0,0.16857762]
[1773496754803,0.01551662,70933.0,70909.0,0.01633314]
[1773496755009,0.042293,70923.0,70911.0,0.01633314]
[1773496755306,0.042293,70923.0,70913.0,0.01633314]
[1773496755811,0.04229,70928.0,70916.0,0.01633314]
[1773496756009,0.00373,70935.0,70917.0,0.01633314]
[1773496756310,0.04299291,70931.0,70919.0,0.01633314]
[1773496758612,0.04399291,70931.0,70919.0,0.01633314]
[1773496759505,0.04299291,70931.0,70919.0,0.01633314]
[1773496759705,0.04399291,70931.0,70919.0,0.01633314]
[1773496760814,0.042289,70930.0,70919.0,0.01633314]
[1773496761603,0.042289,70929.0,70918.0,0.0014]
[1773496761811,0.01546349,70929.0,70912.0,0.16857762]
[1773496762006,0.01546349,70929.0,70913.0,0.0014]
[1773496762310,0.042293,70924.0,70913.0,0.0014]
[1773496763721,0.07346574,70970.0,70918.0,0.113]
[1773496764023,0.01546349,70949.0,70932.0,0.16812878]
[1773496764318,0.07346574,70950.0,70933.0,0.0014]
[1773496764319,0.042281,70942.0,70933.0,0.0014]
[1773496764520,0.042281,70942.0,70934.0,0.0014]
[1773496764819,0.042283,70940.0,70935.0,0.0014]
[1773496765321,0.042283,70940.0,70911.0,0.113]
[1773496765322,0.01546349,70943.0,70930.0,0.0014]
[1773496765515,0.042277,70950.0,70935.0,0.01595888]
[1773496765814,0.042278,70948.0,70935.0,0.16812878]
[1773496766012,0.042281,70943.0,70931.0,0.0014]
[1773496766321,0.042281,70943.0,70932.0,0.0014]
[1773496766916,0.01546349,70945.0,70932.0,0.0014]
[1773496767108,0.01546349,70949.0,70932.0,0.0014]
[1773496767508,0.042282,70941.0,70933.0,0.0014]
[1773496767911,0.042283,70940.0,70933.0,0.0014]
[1773496768511,0.05774649,70940.0,70926.0,0.04229]
[1773496768712,0.05774649,70940.0,70927.0,0.0014]
[1773496769518,0.042283,70939.0,70927.0,0.0014]
[1773496770216,0.042283,70939.0,70927.0,0.0024]
[1773496770918,0.042283,70939.0,70927.0,0.0034]
[1773496771921,0.05774649,70939.0,70927.0,0.0034]
[1773496772315,0.01546349,70951.0,70929.0,0.07346574]
[1773496772623,0.0014,70952.0,70929.0,0.07346574]
[1773496772624,0.042282,70942.0,70929.0,0.07346574]
[1773496777421,0.042282,70941.0,70929.0,0.07346574]
[1773496780227,0.042282,70941.0,70929.0,0.24159452]
[1773496782220,0.042282,70941.0,70930.0,0.16812878]
[1773496782429,0.042282,70941.0,70929.0,0.07346574]
[1773496782430,0.042282,70941.0,70929.0,0.24159452]
[1773496783231,0.042282,70941.0,70930.0,0.16812878]
[1773496784223,0.042282,70941.0,70931.0,0.16812878]
[1773496787123,0.042282,70941.0,70932.0,0.16812878]
[1773496787332,0.042282,70941.0,70933.0,0.0014]
[1773496789132,0.042282,70941.0,70933.0,0.16952878]
[1773496791235,0.042282,70941.0,70934.0,0.16812878]
[1773496793138,0.042282,70941.0,70933.0,0.0014]
[1773496793139,0.042282,70941.0,70935.0,0.16812878]
[1773496794136,0.042282,70941.0,70936.0,0.16812878]
[1773496796543,0.02038479,70946.0,70929.0,0.0014]
[1773496796837,0.02038479,70935.0,70906.0,0.02163318]
[1773496797040,0.042294,70920.0,70901.0,0.042305]
[1773496797239,0.02038479,70922.0,70902.0,0.0014]
[1773496797440,0.0014,70924.0,70898.0,0.00011318]
[1773496797441,0.02038479,70919.0,70898.0,0.00011318]
[1773496797646,0.042303,70907.0,70884.0,0.33778971]
[1773496797838,0.02038479,70911.0,70890.0,0.09502171]
[1773496798141,0.07338853,70920.0,70887.0,0.02163318]
[1773496798142,0.042306,70902.0,70887.0,0.02163318]
[1773496798346,0.0014,70909.0,70899.0,0.00373]
[1773496798528,0.0014,70909.0,70885.0,0.0014]
[1773496798529,0.042308,70897.0,70885.0,0.0014]
[1773496798734,0.0014,70908.0,70885.0,0.02303318]
[1773496798735,0.04242172,70896.0,70885.0,0.02303318]
[1773496798935,0.04242172,70896.0,70890.0,0.001]
[1773496798936,0.042309,70895.0,70890.0,0.001]
[1773496799138,0.00011272,70896.0,70885.0,0.0014]
[1773496799446,0.042311,70893.0,70885.0,0.0014]
[1773496799643,0.00011272,70896.0,70886.0,0.0014]
[1773496799841,0.00011272,70896.0,70886.0,0.02303318]
[1773496800341,0.037309,70895.0,70886.0,0.02303318]
[1773496800541,0.04231,70894.0,70886.0,0.0014]
[1773496800841,0.001,70909.0,70886.0,0.0014]
[1773496800842,0.001,70909.0,70888.0,0.02163318]
[1773496801033,0.0014,70916.0,70893.0,0.02163318]
[1773496801233,0.00373,70907.0,70894.0,0.0014]
[1773496801436,0.00373,70907.0,70895.0,0.0014]
[1773496801739,0.12555848,70933.0,70895.0,0.0014]
[1773496801740,0.02038479,70934.0,70907.0,0.042302]
[1773496801933,0.042275,70954.0,70911.0,0.02163318]
[1773496801934,0.02038479,70942.0,70911.0,0.02163318]
[1773496802130,0.02038479,70942.0,70891.0,0.13997605]
[1773496802131,0.02038479,70942.0,70921.0,0.02163318]
[1773496802328,0.042285,70936.0,70923.0,0.02163318]
[1773496802540,0.0014,70947.0,70922.0,0.0014]
[1773496802851,0.042283,70940.0,70927.0,0.02163318]
[1773496803638,0.07338853,70940.0,70922.0,0.02303318]
[1773496803944,0.002,70934.0,70922.0,0.02303318]
[1773496804543,0.07338853,70940.0,70922.0,0.02303318]
[1773496804744,0.07478853,70940.0,70922.0,0.02303318]
[1773496805139,0.042285,70936.0,70922.0,0.02303318]
[1773496805342,0.042285,70936.0,70922.0,0.02403318]
[1773496806035,0.042285,70936.0,70927.0,0.00373]
[1773496807444,0.0024,70940.0,70927.0,0.00373]
[1773496807445,0.00373,70929.0,70927.0,0.00373]
[1773496807644,0.001,70936.0,70927.0,0.00373]
[1773496808145,0.001,70936.0,70925.0,0.02163318]
[1773496808650,0.042284,70938.0,70925.0,0.02163318]
[1773496809242,0.042284,70938.0,70925.0,0.13463318]
[1773496809549,0.042284,70938.0,70925.0,0.02163318]
[1773496810145,0.001,70936.0,70925.0,0.02163318]
[1773496810838,0.043284,70938.0,70925.0,0.02163318]
[1773496811447,0.001,70936.0,70925.0,0.02163318]
[1773496813039,0.043284,70938.0,70925.0,0.02163318]
[1773496813445,0.042284,70938.0,70925.0,0.02163318]
[1773496813746,0.001,70936.0,70925.0,0.02163318]
[1773496814148,0.043284,70938.0,70925.0,0.02163318]
[1773496814650,0.042284,70938.0,70925.0,0.02163318]
[1773496814950,0.001,70936.0,70925.0,0.02163318]
[1773496815651,0.043285,70936.0,70925.0,0.02163318]
[1773496816449,0.042285,70936.0,70925.0,0.02163318]
[1773496816950,0.043285,70936.0,70925.0,0.02163318]
[1773496817747,0.001,70936.0,70921.0,0.00373]
[1773496817957,0.001,70936.0,70901.0,0.02163318]
[1773496817958,0.02038479,70927.0,70901.0,0.02163318]
[1773496818252,0.0211514,70919.0,70907.0,0.02163318]
[1773496818643,0.042296,70918.0,70907.0,0.02163318]
[1773496818953,0.042296,70918.0,70904.0,0.042304]
[1773496818954,0.042296,70918.0,70909.0,0.02163318]
[1773496819747,0.0014,70926.0,70909.0,0.02163318]
[1773496820145,0.0014,70926.0,70909.0,0.02263318]
[1773496820853,0.042297,70917.0,70909.0,0.02263318]
[1773496821150,0.042297,70917.0,70909.0,0.02363318]
[1773496821561,0.0014,70926.0,70909.0,0.02363318]
[1773496822253,0.0014,70926.0,70909.0,0.02263318]
[1773496822649,0.00373,70919.0,70909.0,0.02163318]
[1773496823056,0.042296,70917.0,70909.0,0.02163318]
[1773496824049,0.04158745,70917.0,70909.0,0.02163318]
[1773496825858,0.042283,70939.0,70909.0,0.02163318]
[1773496825859,0.02547562,70945.0,70915.0,0.02622887]
[1773496826059,0.03128795,70925.0,70915.0,0.02622887]
[1773496826361,0.0014,70935.0,70917.0,0.02622887]
[1773496826557,0.042291,70925.0,70918.0,0.0014]
[1773496827157,0.042291,70925.0,70920.0,0.00373]
[1773496827752,0.00373,70923.0,70920.0,0.00373]
[1773496829357,0.00473,70923.0,70920.0,0.00373]
[1773496829858,0.02547562,70938.0,70920.0,0.02995887]
[1773496830061,0.02547562,70938.0,70920.0,0.09965432]
[1773496830257,0.02547562,70938.0,70921.0,0.0014]
[1773496831248,0.02647562,70938.0,70920.0,0.02622887]
[1773496831453,0.02647562,70938.0,70921.0,0.0014]
[1773496831764,0.02747562,70938.0,70916.0,0.02622887]
[1773496832058,0.042289,70929.0,70917.0,0.0014]
[1773496832253,0.042289,70929.0,70916.0,0.02622887]
[1773496832454,0.042291,70926.0,70917.0,0.0014]
[1773496832766,0.04229,70928.0,70916.0,0.02622887]
[1773496833062,0.04229,70928.0,70917.0,0.0014]
[1773496833263,0.04229,70928.0,70916.0,0.02622887]
[1773496833563,0.04229,70928.0,70917.0,0.0014]
[1773496833749,0.04229,70928.0,70916.0,0.02622887]
[1773496833948,0.04229,70928.0,70917.0,0.0014]
[1773496834258,0.04229,70928.0,70916.0,0.02622887]
[1773496834458,0.04229,70928.0,70917.0,0.0014]
[1773496834963,0.04229,70928.0,70918.0,0.0014]
[1773496835357,0.04229,70928.0,70916.0,0.06852487]
[1773496835558,0.04229,70928.0,70919.0,0.0014]
[1773496835766,0.001,70928.0,70918.0,0.0014]
[1773496836761,0.001,70928.0,70915.0,0.00373]
[1773496836960,0.042296,70918.0,70910.0,0.0014]
[1773496837466,0.042296,70918.0,70911.0,0.0014]
[1773496837768,0.042296,70917.0,70913.0,0.00373]
[1773496838062,0.042296,70917.0,70911.0,0.0014]
[1773496838063,0.042297,70916.0,70911.0,0.0014]
[1773496838457,0.00373,70915.0,70904.0,0.042304]
[1773496838657,0.00373,70915.0,70905.0,0.0014]
[1773496838853,0.042298,70914.0,70906.0,0.0014]
[1773496839263,0.042298,70914.0,70902.0,0.02622887]
[1773496839571,0.042298,70914.0,70907.0,0.0014]
[1773496840767,0.042298,70914.0,70907.0,0.0024]
[1773496843069,0.042298,70914.0,70907.0,0.0014]
[1773496843460,0.00373,70921.0,70907.0,0.0014]
[1773496843768,0.042296,70918.0,70908.0,0.02622887]
[1773496844969,0.042296,70918.0,70908.0,0.02722887]
[1773496845665,0.042296,70918.0,70908.0,0.02622887]
[1773496849272,0.042296,70918.0,70908.0,0.02722887]
[1773496849971,0.042296,70918.0,70908.0,0.02622887]
[1773496850471,0.042296,70918.0,70907.0,0.0014]
[1773496853868,0.042296,70918.0,70907.0,0.0024]
[1773496854774,0.00373,70921.0,70907.0,0.044702]
[1773496855081,0.00373,70921.0,70907.0,0.045702]
[1773496855777,0.00373,70921.0,70907.0,0.044702]
[1773496855978,0.042295,70919.0,70907.0,0.0024]
[1773496856167,0.042296,70918.0,70907.0,0.0024]
[1773496856579,0.042296,70918.0,70908.0,0.16856974]
[1773496856780,0.00373,70921.0,70908.0,0.16856974]
[1773496857077,0.042296,70918.0,70908.0,0.16856974]
[1773496857674,0.042296,70918.0,70908.0,0.16956974]
[1773496858780,0.00373,70921.0,70908.0,0.16956974]
[1773496858972,0.042296,70918.0,70908.0,0.16956974]
[1773496859477,0.00373,70921.0,70908.0,0.17056974]
[1773496859478,0.042296,70917.0,70908.0,0.17056974]
[1773496859675,0.00373,70921.0,70908.0,0.17056974]
[1773496859676,0.042297,70916.0,70908.0,0.17056974]
[1773496860779,0.042297,70916.0,70909.0,0.0014]
[1773496860976,0.02849699,70921.0,70903.0,0.0014]
[1773496860977,0.02476699,70919.0,70903.0,0.0014]
[1773496861575,0.02476699,70919.0,70908.0,0.001]
[1773496862072,0.042299,70913.0,70908.0,0.001]
[1773496862381,0.042299,70913.0,70904.0,0.0014]
[1773496864682,0.042299,70913.0,70904.0,0.0024]
[1773496869788,0.042299,70912.0,70904.0,0.0024]
[1773496871186,0.042299,70912.0,70904.0,0.0014]
[1773496871387,0.042299,70912.0,70904.0,0.0024]
[1773496871790,0.042299,70912.0,70904.0,0.0014]
[1773496872389,0.042299,70912.0,70904.0,0.25335539]
[1773496874689,0.02476699,70914.0,70899.0,0.31615653]
[1773496874993,0.07484375,70920.0,70862.0,0.042328]
[1773496874994,0.042305,70902.0,70897.0,0.0014]
[1773496875792,0.042305,70902.0,70896.0,0.0014]
[1773496875793,0.06707199,70902.0,70896.0,0.0014]
[1773496876086,0.02476699,70901.0,70899.0,0.001]
[1773496876486,0.042306,70901.0,70897.0,0.001]
[1773496876689,0.042305,70903.0,70897.0,0.001]
[1773496877788,0.042305,70903.0,70894.0,0.0014]
[1773496879693,0.042305,70903.0,70890.0,0.042312]
[1773496879896,0.042305,70903.0,70891.0,0.0014]
[1773496880195,0.042303,70905.0,70892.0,0.042311]
[1773496880388,0.042303,70905.0,70893.0,0.0014]
[1773496881197,0.042303,70905.0,70893.0,0.04371]
[1773496881496,0.043303,70905.0,70893.0,0.04371]
[1773496883999,0.043303,70905.0,70894.0,0.0014]
[1773496884411,0.042305,70903.0,70894.0,0.0014]
[1773496885303,0.042305,70903.0,70881.0,0.00070541]
[1773496885304,0.042306,70902.0,70895.0,0.0014]
[1773496885695,0.042306,70902.0,70890.0,0.042312]
[1773496885899,0.042306,70902.0,70891.0,0.0014]
[1773496886404,0.042306,70902.0,70892.0,0.0014]
[1773496886605,0.042304,70904.0,70892.0,0.0014]
[1773496886806,0.07447917,70904.0,70893.0,0.0014]
[1773496886998,0.07447917,70904.0,70890.0,0.042312]
[1773496887199,0.07447917,70904.0,70891.0,0.0014]
[1773496887600,0.07447917,70904.0,70892.0,0.0014]
[1773496887793,0.07547917,70904.0,70892.0,0.0014]
[1773496887996,0.07547917,70904.0,70890.0,0.042312]
[1773496888197,0.07547917,70904.0,70891.0,0.0014]
[1773496888594,0.07547917,70904.0,70892.0,0.0014]
[1773496889100,0.07547917,70904.0,70893.0,0.0014]
[1773496889907,0.07447917,70904.0,70893.0,0.0014]
[1773496890108,0.042305,70903.0,70891.0,0.042311]
[1773496890308,0.12637266,70928.0,70886.0,0.03094119]
[1773496890309,0.03217517,70908.0,70886.0,0.03094119]
[1773496890513,0.03217517,70924.0,70899.0,0.03094119]
[1773496890805,0.03217517,70924.0,70901.0,0.03094119]
[1773496890999,0.042297,70917.0,70904.0,0.042303]
[1773496891401,0.00513,70921.0,70901.0,0.03094119]
[1773496891402,0.00373,70921.0,70901.0,0.03094119]
[1773496892103,0.03217517,70924.0,70901.0,0.03094119]
[1773496892509,0.20582221,70923.0,70901.0,0.03094119]
[1773496892709,0.0014,70923.0,70901.0,0.03094119]
[1773496893207,0.042295,70919.0,70905.0,0.042303]
[1773496893414,0.001,70917.0,70906.0,0.0014]
[1773496893911,0.042295,70919.0,70906.0,0.0014]
[1773496894405,0.043295,70919.0,70906.0,0.0014]
[1773496894612,0.001,70917.0,70909.0,0.07344375]
[1773496896108,0.044295,70919.0,70909.0,0.07344375]
[1773496896711,0.001,70917.0,70909.0,0.07344375]
[1773496897306,0.043295,70919.0,70909.0,0.07344375]
[1773496897912,0.001,70917.0,70909.0,0.07344375]
[1773496899301,0.042295,70919.0,70909.0,0.07344375]
[1773496899506,0.043295,70919.0,70909.0,0.07344375]
[1773496900006,0.042295,70919.0,70909.0,0.07344375]
[1773496900515,0.043295,70919.0,70907.0,0.042301]
[1773496902409,0.042296,70918.0,70906.0,0.0014]
[1773496903617,0.043296,70918.0,70906.0,0.0014]
[1773496904415,0.042296,70917.0,70906.0,0.0014]
[1773496904617,0.037296,70917.0,70906.0,0.0014]
[1773496906715,0.038296,70917.0,70906.0,0.0014]
[1773496907816,0.001,70917.0,70906.0,0.0014]
[1773496917629,0.043296,70917.0,70906.0,0.0014]
[1773496919622,0.001,70917.0,70906.0,0.0014]
[1773496919827,0.03267821,70917.0,70907.0,0.0014]
[1773496920133,0.042298,70914.0,70908.0,0.0014]
[1773496920433,0.042298,70914.0,70906.0,0.0014]
[1773496920920,0.042301,70909.0,70895.0,0.03072728]
[1773496921126,0.042301,70909.0,70896.0,0.0014]
[1773496921633,0.042301,70909.0,70891.0,0.03072728]
[1773496921934,0.042301,70909.0,70896.0,0.042308]
[1773496922235,0.042301,70909.0,70892.0,0.0014]
[1773496922236,0.042301,70909.0,70897.0,0.042308]
[1773496922636,0.0423,70911.0,70898.0,0.042307]
[1773496922842,0.0423,70911.0,70899.0,0.0014]
[1773496925635,0.0433,70911.0,70899.0,0.0014]
[1773496928429,0.001,70911.0,70900.0,0.1041705]
[1773496928624,0.00373,70921.0,70901.0,0.03072728]
[1773496928830,0.00373,70921.0,70899.0,0.0014]
[1773496928831,0.00373,70921.0,70910.0,0.07344322]
[1773496929026,0.00373,70921.0,70911.0,0.0014]
[1773496929734,0.0014,70925.0,70911.0,0.0014]
[1773496929930,0.001,70921.0,70911.0,0.0014]
[1773496930129,0.002,70921.0,70911.0,0.0014]
[1773496930836,0.044294,70921.0,70911.0,0.0014]
[1773496931037,0.042295,70920.0,70911.0,0.0014]
[1773496932935,0.043295,70920.0,70911.0,0.0014]
[1773496934543,0.001,70920.0,70911.0,0.0014]
[1773496937944,0.001,70920.0,70911.0,0.043699]
[1773496939344,0.00373,70921.0,70911.0,0.043699]
[1773496940747,0.00373,70921.0,70911.0,0.0014]
[1773496940934,0.04229,70928.0,70912.0,0.03072728]
[1773496941135,0.04229,70927.0,70914.0,0.042298]
[1773496941536,0.001,70921.0,70914.0,0.042298]
[1773496941749,0.04229,70927.0,70919.0,0.00373]
[1773496942253,0.04329,70927.0,70919.0,0.00373]
[1773496942547,0.00373,70922.0,70919.0,0.00373]
[1773496942748,0.04229,70927.0,70919.0,0.00373]
[1773496943140,0.04229,70927.0,70918.0,0.0014]
[1773496943347,0.04329,70927.0,70918.0,0.0014]
[1773496944849,0.042291,70926.0,70918.0,0.0014]
[1773496947047,0.001,70927.0,70918.0,0.0014]
[1773496947253,0.0014,70933.0,70918.0,0.0014]
[1773496947455,0.02886678,70931.0,70919.0,0.0014]
[1773496947848,0.042292,70925.0,70919.0,0.0014]
[1773496954559,0.04229,70927.0,70919.0,0.0014]
[1773496954749,0.02886678,70936.0,70919.0,0.0014]
[1773496955060,0.042288,70932.0,70919.0,0.043694]
[1773496956552,0.042288,70931.0,70919.0,0.043694]
[1773496957166,0.042288,70931.0,70919.0,0.07322634]
[1773496961061,0.042283,70940.0,70922.0,0.02953234]
[1773496961959,0.042283,70939.0,70926.0,0.04229]
[1773496962260,0.042283,70939.0,70927.0,0.0014]
[1773496962956,0.042284,70938.0,70927.0,0.0014]
[1773496964157,0.043284,70938.0,70927.0,0.0014]
[1773496964355,0.044284,70938.0,70927.0,0.0014]
[1773496965259,0.002,70938.0,70927.0,0.07322234]
[1773496965460,0.002,70938.0,70928.0,0.02953234]
[1773496965759,0.02886678,70947.0,70930.0,0.042288]
[1773496965760,0.042281,70942.0,70930.0,0.042288]
[1773496966061,0.02886678,70950.0,70930.0,0.07344322]
[1773496966245,0.042281,70943.0,70930.0,0.042288]
[1773496966649,0.002,70938.0,70930.0,0.042288]
[1773496967145,0.04228,70945.0,70928.0,0.02953234]
[1773496967349,0.001,70943.0,70931.0,0.042288]
[1773496969259,0.001,70943.0,70932.0,0.042287]
[1773496969467,0.02886678,70950.0,70932.0,0.042287]
[1773496969851,0.02886678,70950.0,70933.0,0.0014]
[1773496970060,0.001,70945.0,70933.0,0.0014]
[1773496970764,0.042281,70943.0,70933.0,0.0014]
[1773496971065,0.02986678,70950.0,70933.0,0.0014]
[1773496971252,0.02886678,70950.0,70933.0,0.0014]
[1773496971458,0.001,70945.0,70933.0,0.0014]
[1773496971862,0.043281,70943.0,70933.0,0.0014]
[1773496972460,0.042282,70942.0,70933.0,0.0014]
[1773496974459,0.001,70945.0,70933.0,0.0014]
[1773496974668,0.02812406,70937.0,70915.0,0.2529633]
[1773496974972,0.02812406,70929.0,70907.0,0.005]
[1773496975260,0.042292,70925.0,70911.0,0.042299]
[1773496975659,0.02812406,70929.0,70914.0,0.00373]
[1773496975967,0.02812406,70929.0,70915.0,0.0014]
[1773496976666,0.02812406,70929.0,70915.0,0.0024]
[1773496976967,0.042291,70926.0,70915.0,0.0024]
[1773496978764,0.042291,70926.0,70915.0,0.0034]
[1773496979465,0.042291,70926.0,70915.0,0.0024]
[1773496979666,0.042292,70925.0,70915.0,0.0024]
[1773496979867,0.042292,70925.0,70915.0,0.0014]
[1773496981470,0.02812406,70929.0,70915.0,0.0014]
[1773496981471,0.04229,70927.0,70915.0,0.0014]
[1773496981673,0.042291,70926.0,70915.0,0.0014]
[1773496983572,0.042292,70925.0,70915.0,0.0014]
[1773496985275,0.02812406,70934.0,70915.0,0.0014]
[1773496985465,0.02812406,70934.0,70916.0,0.042296]
[1773496986171,0.0014,70942.0,70915.0,0.0014]
[1773496986172,0.04229,70928.0,70915.0,0.0014]
[1773496986868,0.042291,70926.0,70915.0,0.0014]
[1773496987573,0.042291,70926.0,70915.0,0.0024]
[1773496987969,0.02812406,70931.0,70915.0,0.0024]
[1773496988175,0.042293,70923.0,70915.0,0.0024]
[1773496988369,0.042293,70923.0,70916.0,0.0014]
[1773496989076,0.042292,70925.0,70916.0,0.0014]
[1773496997477,0.02812406,70928.0,70916.0,0.0014]
[1773496997678,0.042292,70925.0,70916.0,0.0014]
[1773497009990,0.02812406,70928.0,70916.0,0.0014]
[1773497009991,0.04229,70927.0,70916.0,0.0014]
[1773497010393,0.042291,70926.0,70916.0,0.0014]
[1773497016500,0.02812406,70928.0,70916.0,0.0014]
[1773497016811,0.04229,70928.0,70916.0,0.043696]
[1773497017916,0.042285,70935.0,70922.0,0.042293]
[1773497018097,0.02515345,70947.0,70926.0,0.02512847]
[1773497018302,0.042281,70942.0,70930.0,0.07339886]
[1773497018501,0.042281,70942.0,70931.0,0.0014]
[1773497019905,0.02615345,70947.0,70932.0,0.042287]
[1773497019906,0.001,70947.0,70932.0,0.042287]
[1773497020106,0.0014,70950.0,70932.0,0.042287]
[1773497020701,0.04228,70945.0,70932.0,0.042287]
[1773497020911,0.042281,70944.0,70931.0,0.0014]
[1773497021310,0.042281,70943.0,70931.0,0.0014]
[1773497021807,0.04228,70945.0,70931.0,0.0014]
[1773497023007,0.04228,70945.0,70931.0,0.043687]
[1773497023315,0.04228,70945.0,70932.0,0.042287]
[1773497023811,0.02515345,70955.0,70935.0,0.07339886]
[1773497024006,0.02515345,70955.0,70940.0,0.07339886]
[1773497024211,0.02515345,70955.0,70941.0,0.0014]
[1773497024417,0.042277,70949.0,70941.0,0.0014]
[1773497027514,0.042278,70948.0,70941.0,0.0014]
[1773497029710,0.042277,70950.0,70941.0,0.0014]
[1773497034422,0.042277,70949.0,70941.0,0.0014]
[1773497036820,0.042278,70948.0,70941.0,0.0014]
[1773497042720,0.042277,70950.0,70941.0,0.0014]
[1773497043822,0.02552966,70956.0,70941.0,0.0014]
[1773497043823,0.042275,70952.0,70941.0,0.0014]
[1773497044421,0.042276,70951.0,70941.0,0.0014]
[1773497046433,0.042277,70950.0,70941.0,0.0014]
[1773497049220,0.02552966,70956.0,70941.0,0.0014]
[1773497049221,0.042276,70951.0,70941.0,0.0014]
[1773497050528,0.03187601,70951.0,70941.0,0.0014]
[1773497052328,0.02552966,70958.0,70942.0,0.042281]
[1773497053427,0.02552966,70958.0,70941.0,0.0014]
[1773497053636,0.02552966,70965.0,70948.0,0.07338147]
[1773497054141,0.00373,70967.0,70949.0,0.0014]
[1773497054837,0.00373,70967.0,70949.0,0.02625481]
[1773497055033,0.042267,70966.0,70952.0,0.042275]
[1773497055243,0.001,70965.0,70952.0,0.042275]
[1773497055633,0.02552966,70962.0,70949.0,0.043677]
[1773497055938,0.02552966,70961.0,70950.0,0.03154661]
[1773497057248,0.02552966,70961.0,70950.0,0.03254661]
[1773497057539,0.02552966,70961.0,70950.0,0.03354661]
[1773497057738,0.02552966,70961.0,70950.0,0.03254661]
[1773497058041,0.04227,70962.0,70950.0,0.03354661]
[1773497058239,0.042268,70964.0,70950.0,0.03354661]
[1773497058442,0.042268,70964.0,70951.0,0.042275]
[1773497058843,0.042268,70964.0,70952.0,0.042275]
[1773497065548,0.042268,70964.0,70952.0,0.06853542]
[1773497065749,0.042267,70966.0,70953.0,0.042274]
[1773497065947,0.02654526,70974.0,70953.0,0.02626042]
[1773497066147,0.042267,70967.0,70956.0,0.02626042]
[1773497066843,0.02654526,70974.0,70957.0,0.043672]
[1773497066844,0.042265,70969.0,70957.0,0.043672]
[1773497067044,0.042265,70969.0,70958.0,0.0014]
[1773497068040,0.043265,70969.0,70958.0,0.0014]
[1773497068841,0.001,70969.0,70958.0,0.0014]
[1773497069541,0.02654526,70971.0,70958.0,0.0014]
[1773497069742,0.02654526,70971.0,70955.0,0.042273]
[1773497070041,0.02654526,70971.0,70959.0,0.0014]
[1773497070346,0.02794526,70977.0,70959.0,0.0014]
[1773497070851,0.001,70971.0,70959.0,0.0014]
[1773497071146,0.02654526,70973.0,70959.0,0.0014]
[1773497071352,0.042267,70966.0,70959.0,0.00060985]
[1773497071545,0.042266,70968.0,70959.0,0.00060985]
[1773497075858,0.042265,70970.0,70959.0,0.00060985]
[1773497076557,0.02654526,70971.0,70959.0,0.00060985]
[1773497076856,0.06880926,70971.0,70959.0,0.04288085]
[1773497077159,0.042265,70970.0,70959.0,0.00060985]